fUSD/lending_fUSD_20260625
["ID","MTS","AMOUNT","RATE_DAILY","PERIOD"]
[426392395,1782341439000,-500.0,0.00013698,2]
[426392396,1782341439000,-176.01433661,0.00013698,2]
[426392408,1782341439000,-500.0,0.00013698,2]
[426392401,1782341439000,-520.11,0.00013698,2]
[426392403,1782341439000,-520.11,0.00013698,2]
[426392404,1782341439000,-500.0,0.00013698,2]
[426392405,1782341439000,-500.0,0.00013698,2]
[426392407,1782341439000,-500.0,0.00013698,2]
[426392406,1782341439000,-500.0,0.00013698,2]
[426392411,1782341439000,-500.0,0.00013698,2]
[426392412,1782341439000,-500.0,0.00013698,2]
[426392409,1782341439000,-600.58062303,0.00013698,2]
[426392413,1782341439000,-500.0,0.00013698,2]
[426392414,1782341439000,-500.0,0.00013698,2]
[426392410,1782341439000,-500.0,0.00013698,2]
[426392387,1782341439000,-500.0,0.00013698,2]
[426392402,1782341439000,-520.11,0.00013698,2]
[426392385,1782341439000,-500.0,0.00013698,2]
[426392355,1782341439000,-500.0,0.00013698,2]
[426392383,1782341439000,-500.0,0.00013698,2]
[426392415,1782341439000,-500.0,0.00013698,2]
[426392357,1782341439000,-500.0,0.00013698,2]
[426392356,1782341439000,-500.0,0.00013698,2]
[426392358,1782341439000,-500.0,0.00013698,2]
[426392362,1782341439000,-500.0,0.00013698,2]
[426392363,1782341439000,-500.0,0.00013698,2]
[426392360,1782341439000,-500.0,0.00013698,2]
[426392361,1782341439000,-500.0,0.00013698,2]
[426392359,1782341439000,-500.0,0.00013698,2]
[426392364,1782341439000,-500.0,0.00013698,2]
[426392365,1782341439000,-500.0,0.00013698,2]
[426392368,1782341439000,-500.0,0.00013698,2]
[426392366,1782341439000,-500.0,0.00013698,2]
[426392384,1782341439000,-500.0,0.00013698,2]
[426392370,1782341439000,-500.0,0.00013698,2]
[426392369,1782341439000,-500.0,0.00013698,2]
[426392371,1782341439000,-500.0,0.00013698,2]
[426392373,1782341439000,-500.0,0.00013698,2]
[426392375,1782341439000,-500.0,0.00013698,2]
[426392376,1782341439000,-207.02,0.00013698,2]
[426392374,1782341439000,-500.0,0.00013698,2]
[426392372,1782341439000,-500.0,0.00013698,2]
[426392377,1782341439000,-500.0,0.00013698,2]
[426392378,1782341439000,-500.0,0.00013698,2]
[426392381,1782341439000,-500.0,0.00013698,2]
[426392380,1782341439000,-500.0,0.00013698,2]
[426392379,1782341439000,-500.0,0.00013698,2]
[426392382,1782341439000,-500.0,0.00013698,2]
[426392367,1782341439000,-500.0,0.00013698,2]
[426392416,1782341439000,-500.0,0.00013698,2]
[426392474,1782341439000,-150.0,0.00013798,2]
[426392417,1782341439000,-500.0,0.00013698,2]
[426392449,1782341439000,-569.70339284,0.00013699,2]
[426392456,1782341439000,-305.96,0.00013713,2]
[426392454,1782341439000,-150.0,0.00013709,2]
[426392458,1782341439000,-150.0,0.00013728,2]
[426392455,1782341439000,-150.0,0.0001371,2]
[426392459,1782341439000,-417.39,0.00013732,2]
[426392457,1782341439000,-150.0,0.00013726,2]
[426392462,1782341439000,-150.0,0.00013746,2]
[426392463,1782341439000,-150.0,0.00013747,2]
[426392460,1782341439000,-150.0,0.00013743,2]
[426392464,1782341439000,-150.0,0.00013752,2]
[426392465,1782341439000,-150.0,0.0001376,2]
[426392461,1782341439000,-150.0,0.00013744,2]
[426392450,1782341439000,-1624.11926312,0.00013699,2]
[426392467,1782341439000,-150.0,0.00013765,2]
[426392470,1782341439000,-150.0,0.00013784,2]
[426392471,1782341439000,-150.0,0.00013787,2]
[426392468,1782341439000,-150.0,0.00013777,2]
[426392473,1782341439000,-150.0,0.00013794,2]
[426392475,1782341439000,-150.0,0.00013802,2]
[426392476,1782341439000,-150.0,0.00013811,2]
[426392477,1782341439000,-150.0,0.00013817,2]
[426392478,1782341439000,-150.0,0.00013821,2]
[426392479,1782341439000,-150.0,0.00013828,2]
[426392480,1782341439000,-150.0,0.00013828,2]
[426392482,1782341439000,-150.0,0.0001384,2]
[426392481,1782341439000,-150.0,0.00013839,2]
[426392418,1782341439000,-500.0,0.00013698,2]
[426392469,1782341439000,-150.0,0.0001378,2]
[426392453,1782341439000,-150.0,0.00013707,2]
[426392466,1782341439000,-150.0,0.0001376,2]
[426392451,1782341439000,-1155.58666498,0.00013699,2]
[426392420,1782341439000,-500.0,0.00013698,2]
[426392452,1782341439000,-29767.09,0.00013699,2]
[426392419,1782341439000,-500.0,0.00013698,2]
[426392425,1782341439000,-500.0,0.00013698,2]
[426392421,1782341439000,-500.0,0.00013698,2]
[426392427,1782341439000,-1857.37,0.00013698,2]
[426392426,1782341439000,-1857.37,0.00013698,2]
[426392423,1782341439000,-500.0,0.00013698,2]
[426392428,1782341439000,-1857.37,0.00013698,2]
[426392430,1782341439000,-1857.37,0.00013698,2]
[426392432,1782341439000,-1857.37,0.00013698,2]
[426392433,1782341439000,-2327.39,0.00013698,2]
[426392434,1782341439000,-2327.39,0.00013698,2]
[426392435,1782341439000,-2327.39,0.00013698,2]
[426392429,1782341439000,-1857.37,0.00013698,2]
[426392438,1782341439000,-2327.39,0.00013698,2]
[426392448,1782341439000,-3681.87890788,0.00013699,2]
[426392431,1782341439000,-1857.37,0.00013698,2]
[426392446,1782341439000,-9210.02462057,0.00013699,2]
[426392445,1782341439000,-890.2,0.00013699,2]
[426392443,1782341439000,-213.64,0.00013699,2]
[426392447,1782341439000,-5393.4018805,0.00013699,2]
[426392442,1782341439000,-723.55,0.00013699,2]
[426392444,1782341439000,-178.04,0.00013699,2]
[426392439,1782341439000,-2327.39,0.00013698,2]
[426392436,1782341439000,-2327.39,0.00013698,2]
[426392440,1782341439000,-2500.0,0.00013699,2]
[426392441,1782341439000,-200.0,0.00013699,2]
[426392437,1782341439000,-2327.39,0.00013698,2]
[426392524,1782341440000,-150.0,0.00014004,2]
[426392526,1782341440000,-150.0,0.00014016,2]
[426392528,1782341440000,-150.0,0.00014024,2]
[426392525,1782341440000,-150.0,0.00014006,2]
[426392523,1782341440000,-1050.45040417,0.00014003,2]
[426392521,1782341440000,-603.906229,0.00014,2]
[426392520,1782341440000,-150.0,0.00013999,2]
[426392518,1782341440000,-60000.0,0.0001399,2]
[426392546,1782341440000,-150.0,0.00014101,2]
[426392519,1782341440000,-150.0,0.00013999,2]
[426392517,1782341440000,-500.0,0.00013989,2]
[426392527,1782341440000,-150.0,0.00014017,2]
[426392522,1782341440000,-3028.17278,0.00014,2]
[426392529,1782341440000,-150.0,0.00014033,2]
[426392544,1782341440000,-5393.4018805,0.00014099,2]
[426392530,1782341440000,-150.0,0.00014033,2]
[426392532,1782341440000,-150.0,0.00014043,2]
[426392535,1782341440000,-150.0,0.00014061,2]
[426392531,1782341440000,-150.0,0.00014036,2]
[426392533,1782341440000,-150.0,0.0001405,2]
[426392536,1782341440000,-150.0,0.00014067,2]
[426392542,1782341440000,-150.0,0.00014098,2]
[426392537,1782341440000,-150.0,0.00014073,2]
[426392538,1782341440000,-150.0,0.0001408,2]
[426392539,1782341440000,-150.0,0.00014084,2]
[426392543,1782341440000,-9210.02462057,0.00014099,2]
[426392540,1782341440000,-150.0,0.00014087,2]
[426392513,1782341440000,-150.0,0.00013987,2]
[426392534,1782341440000,-150.0,0.00014056,2]
[426392515,1782341440000,-542.12,0.00013989,2]
[426392484,1782341440000,-150.0,0.00013849,2]
[426392514,1782341440000,-500.0,0.00013989,2]
[426392483,1782341440000,-150.0,0.00013845,2]
[426392485,1782341440000,-150.0,0.00013853,2]
[426392486,1782341440000,-150.0,0.00013858,2]
[426392488,1782341440000,-150.0,0.00013876,2]
[426392487,1782341440000,-150.0,0.00013862,2]
[426392490,1782341440000,-150.0,0.0001389,2]
[426392489,1782341440000,-150.0,0.00013879,2]
[426392491,1782341440000,-150.0,0.00013895,2]
[426392492,1782341440000,-150.0,0.00013896,2]
[426392494,1782341440000,-9210.02462057,0.00013899,2]
[426392496,1782341440000,-3700.0,0.000139,5]
[426392495,1782341440000,-5393.4018805,0.00013899,2]
[426392493,1782341440000,-150.0,0.00013896,2]
[426392497,1782341440000,-150.0,0.00013901,2]
[426392504,1782341440000,-150.0,0.00013947,2]
[426392498,1782341440000,-150.0,0.00013913,2]
[426392500,1782341440000,-150.0,0.00013926,2]
[426392502,1782341440000,-150.0,0.0001393,2]
[426392501,1782341440000,-150.0,0.00013928,2]
[426392503,1782341440000,-150.0,0.00013932,2]
[426392499,1782341440000,-150.0,0.00013913,2]
[426392505,1782341440000,-150.0,0.0001395,2]
[426392507,1782341440000,-150.0,0.00013963,2]
[426392506,1782341440000,-150.0,0.00013953,2]
[426392509,1782341440000,-150.0,0.00013965,2]
[426392510,1782341440000,-150.0,0.00013969,2]
[426392508,1782341440000,-150.0,0.00013965,2]
[426392511,1782341440000,-150.0,0.00013982,2]
[426392512,1782341440000,-150.0,0.00013987,2]
[426392516,1782341440000,-500.0,0.00013989,2]
[426392547,1782341440000,-150.0,0.00014105,2]
[426392573,1782341440000,-150.0,0.00014237,2]
[426392549,1782341440000,-150.0,0.00014109,2]
[426392582,1782341440000,-150.0,0.00014283,2]
[426392585,1782341440000,-9210.02462057,0.00014299,2]
[426392584,1782341440000,-150.0,0.00014292,2]
[426392586,1782341440000,-5393.4018805,0.00014299,2]
[426392589,1782341440000,-150.0,0.00014305,2]
[426392588,1782341440000,-150.0,0.00014305,2]
[426392587,1782341440000,-150.0,0.00014302,2]
[426392591,1782341440000,-150.0,0.0001432,2]
[426392590,1782341440000,-150.0,0.00014315,2]
[426392593,1782341440000,-150.0,0.00014328,2]
[426392592,1782341440000,-150.0,0.00014322,2]
[426392594,1782341440000,-150.0,0.00014339,2]
[426392595,1782341440000,-150.0,0.00014339,2]
[426392583,1782341440000,-150.0,0.00014288,2]
[426392596,1782341440000,-150.0,0.00014356,2]
[426392597,1782341440000,-150.0,0.00014357,2]
[426392599,1782341440000,-150.0,0.00014366,2]
[426392600,1782341440000,-150.0,0.00014369,2]
[426392602,1782341440000,-150.0,0.00014373,2]
[426392601,1782341440000,-150.0,0.00014373,2]
[426392603,1782341440000,-150.0,0.00014376,2]
[426392604,1782341440000,-300.55,0.00014386,2]
[426392608,1782341440000,-150.0,0.00014401,2]
[426392609,1782341440000,-150.0,0.00014407,2]
[426392607,1782341440000,-150.0,0.00014394,2]
[426392606,1782341440000,-150.0,0.0001439,2]
[426392610,1782341440000,-150.0,0.00014413,2]
[426392545,1782341440000,-150.0,0.00014101,2]
[426392598,1782341440000,-150.0,0.00014365,2]
[426392581,1782341440000,-150.0,0.00014281,2]
[426392605,1782341440000,-150.0,0.00014387,2]
[426392580,1782341440000,-150.0,0.00014271,2]
[426392576,1782341440000,-150.0,0.00014254,2]
[426392548,1782341440000,-150.0,0.00014108,2]
[426392551,1782341440000,-150.0,0.00014118,2]
[426392554,1782341440000,-150.0,0.00014146,2]
[426392557,1782341440000,-150.0,0.00014159,2]
[426392555,1782341440000,-150.0,0.00014152,2]
[426392552,1782341440000,-150.0,0.00014135,2]
[426392556,1782341440000,-150.0,0.00014154,2]
[426392550,1782341440000,-150.0,0.00014117,2]
[426392558,1782341440000,-150.0,0.00014169,2]
[426392560,1782341440000,-150.0,0.00014172,2]
[426392562,1782341440000,-150.0,0.00014186,2]
[426392561,1782341440000,-150.0,0.00014182,2]
[426392559,1782341440000,-150.0,0.00014169,2]
[426392553,1782341440000,-150.0,0.00014135,2]
[426392564,1782341440000,-150.0,0.00014193,2]
[426392563,1782341440000,-150.0,0.00014191,2]
[426392579,1782341440000,-150.0,0.00014265,2]
[426392574,1782341440000,-150.0,0.00014237,2]
[426392572,1782341440000,-150.0,0.00014237,2]
[426392575,1782341440000,-150.0,0.00014246,2]
[426392570,1782341440000,-150.0,0.0001422,2]
[426392577,1782341440000,-150.0,0.00014255,2]
[426392567,1782341440000,-150.0,0.00014211,2]
[426392565,1782341440000,-150.0,0.00014203,2]
[426392571,1782341440000,-150.0,0.00014228,2]
[426392566,1782341440000,-150.0,0.00014209,2]
[426392578,1782341440000,-150.0,0.00014263,2]
[426392569,1782341440000,-174.57,0.0001422,2]
[426392568,1782341440000,-150.0,0.00014219,2]
[426392655,1782341441000,-150.0,0.00014612,2]
[426392650,1782341441000,-150.0,0.00014578,2]
[426392645,1782341441000,-150.0,0.00014548,2]
[426392647,1782341441000,-150.0,0.00014561,2]
[426392649,1782341441000,-150.0,0.00014578,2]
[426392653,1782341441000,-150.0,0.00014595,2]
[426392652,1782341441000,-150.0,0.00014584,2]
[426392656,1782341441000,-150.0,0.00014616,2]
[426392657,1782341441000,-150.0,0.00014621,2]
[426392654,1782341441000,-150.0,0.00014598,2]
[426392651,1782341441000,-150.0,0.00014579,2]
[426392648,1782341441000,-150.0,0.00014573,2]
[426392664,1782341441000,-150.0,0.00014653,2]
[426392658,1782341441000,-150.0,0.00014625,2]
[426392660,1782341441000,-150.0,0.00014634,2]
[426392662,1782341441000,-150.0,0.00014646,2]
[426392661,1782341441000,-150.0,0.00014635,2]
[426392663,1782341441000,-150.0,0.00014646,2]
[426392666,1782341441000,-150.0,0.00014663,2]
[426392665,1782341441000,-150.0,0.00014657,2]
[426392667,1782341441000,-150.0,0.00014672,2]
[426392668,1782341441000,-150.0,0.00014676,2]
[426392669,1782341441000,-150.0,0.0001468,2]
[426392646,1782341441000,-150.0,0.00014561,2]
[426392670,1782341441000,-150.0,0.00014687,2]
[426392659,1782341441000,-150.0,0.00014629,2]
[426392644,1782341441000,-150.0,0.00014546,2]
[426392625,1782341441000,-150.0,0.00014487,2]
[426392642,1782341441000,-150.0,0.00014542,2]
[426392672,1782341441000,-150.0,0.00014694,2]
[426392611,1782341441000,-150.0,0.00014418,2]
[426392612,1782341441000,-150.0,0.00014424,2]
[426392613,1782341441000,-150.0,0.00014431,2]
[426392614,1782341441000,-150.0,0.00014438,2]
[426392615,1782341441000,-150.0,0.00014441,2]
[426392616,1782341441000,-150.0,0.00014441,2]
[426392619,1782341441000,-150.0,0.00014458,2]
[426392621,1782341441000,-150.0,0.0001447,2]
[426392617,1782341441000,-150.0,0.0001445,2]
[426392622,1782341441000,-150.0,0.00014475,2]
[426392620,1782341441000,-150.0,0.00014468,2]
[426392643,1782341441000,-150.0,0.00014544,2]
[426392624,1782341441000,-150.0,0.00014487,2]
[426392626,1782341441000,-150.0,0.00014492,2]
[426392627,1782341441000,-1245.84,0.00014497,2]
[426392629,1782341441000,-9210.02462057,0.000145,2]
[426392628,1782341441000,-500.0,0.00014499,2]
[426392637,1782341441000,-150.0,0.00014521,2]
[426392630,1782341441000,-5393.4018805,0.000145,2]
[426392632,1782341441000,-150.0,0.00014509,2]
[426392634,1782341441000,-150.0,0.00014509,2]
[426392631,1782341441000,-150.0,0.00014505,2]
[426392636,1782341441000,-150.0,0.00014511,2]
[426392639,1782341441000,-150.0,0.00014524,2]
[426392641,1782341441000,-150.0,0.00014526,2]
[426392623,1782341441000,-150.0,0.00014475,2]
[426392671,1782341441000,-150.0,0.0001469,2]
[426392618,1782341441000,-150.0,0.00014457,2]
[426392677,1782341441000,-9210.02462057,0.000147,2]
[426392707,1782341441000,-433.0,0.00014834,2]
[426392706,1782341441000,-150.0,0.00014833,2]
[426392709,1782341441000,-150.0,0.0001484,2]
[426392708,1782341441000,-150.0,0.00014838,2]
[426392710,1782341441000,-150.0,0.0001485,2]
[426392711,1782341441000,-150.0,0.0001485,2]
[426392713,1782341441000,-500.0,0.00014857,2]
[426392712,1782341441000,-150.0,0.00014857,2]
[426392714,1782341441000,-500.0,0.00014857,2]
[426392715,1782341441000,-500.0,0.00014857,2]
[426392717,1782341441000,-500.0,0.00014857,2]
[426392718,1782341441000,-500.0,0.00014857,2]
[426392705,1782341441000,-150.0,0.00014831,2]
[426392716,1782341441000,-500.0,0.00014857,2]
[426392722,1782341441000,-500.0,0.00014857,2]
[426392721,1782341441000,-500.0,0.00014857,2]
[426392727,1782341441000,-150.0,0.00014884,2]
[426392720,1782341441000,-500.0,0.00014857,2]
[426392723,1782341441000,-150.0,0.00014867,2]
[426392724,1782341441000,-150.0,0.00014875,2]
[426392726,1782341441000,-150.0,0.00014883,2]
[426392725,1782341441000,-150.0,0.00014877,2]
[426392728,1782341441000,-150.0,0.00014894,2]
[426392731,1782341441000,-9210.02462057,0.000149,2]
[426392730,1782341441000,-585.64,0.00014899,2]
[426392673,1782341441000,-150.0,0.00014697,2]
[426392719,1782341441000,-500.0,0.00014857,2]
[426392704,1782341441000,-150.0,0.0001482,2]
[426392729,1782341441000,-150.0,0.00014898,2]
[426392702,1782341441000,-1084.87662382,0.0001481,2]
[426392676,1782341441000,-500.0,0.00014699,2]
[426392678,1782341441000,-5393.4018805,0.000147,2]
[426392674,1782341441000,-500.0,0.00014699,2]
[426392675,1782341441000,-520.11,0.00014699,2]
[426392680,1782341441000,-150.0,0.00014709,2]
[426392679,1782341441000,-4900.0,0.000147,5]
[426392681,1782341441000,-150.0,0.00014714,2]
[426392703,1782341441000,-150.0,0.00014816,2]
[426392682,1782341441000,-150.0,0.00014714,2]
[426392685,1782341441000,-150.0,0.00014728,2]
[426392684,1782341441000,-150.0,0.00014727,2]
[426392686,1782341441000,-150.0,0.0001473,2]
[426392688,1782341441000,-150.0,0.00014746,2]
[426392683,1782341441000,-150.0,0.00014722,2]
[426392691,1782341441000,-150.0,0.00014765,2]
[426392687,1782341441000,-150.0,0.00014731,2]
[426392701,1782341441000,-150.0,0.0001481,2]
[426392698,1782341441000,-6200.0,0.000148,5]
[426392700,1782341441000,-150.0,0.00014804,2]
[426392696,1782341441000,-150.0,0.00014783,2]
[426392697,1782341441000,-150.0,0.00014799,2]
[426392699,1782341441000,-150.0,0.00014801,2]
[426392694,1782341441000,-150.0,0.00014782,2]
[426392692,1782341441000,-150.0,0.00014767,2]
[426392693,1782341441000,-150.0,0.0001478,2]
[426392689,1782341441000,-150.0,0.00014748,2]
[426392690,1782341441000,-150.0,0.00014764,2]
[426392695,1782341441000,-150.0,0.00014782,2]
[426392779,1782341442000,-500.0,0.00014999,2]
[426392776,1782341442000,-500.0,0.00014999,2]
[426392777,1782341442000,-500.0,0.00014999,2]
[426392775,1782341442000,-500.0,0.00014999,2]
[426392774,1782341442000,-500.0,0.00014999,2]
[426392769,1782341442000,-500.0,0.00014999,2]
[426392772,1782341442000,-500.0,0.00014999,2]
[426392770,1782341442000,-229.50990833,0.00014999,2]
[426392768,1782341442000,-500.0,0.00014999,2]
[426392771,1782341442000,-500.0,0.00014999,2]
[426392773,1782341442000,-500.0,0.00014999,2]
[426392780,1782341442000,-500.0,0.00014999,2]
[426392791,1782341442000,-542.12,0.00014999,2]
[426392781,1782341442000,-500.0,0.00014999,2]
[426392782,1782341442000,-511.70912212,0.00014999,2]
[426392783,1782341442000,-542.12,0.00014999,2]
[426392785,1782341442000,-542.12,0.00014999,2]
[426392784,1782341442000,-542.12,0.00014999,2]
[426392787,1782341442000,-542.12,0.00014999,2]
[426392786,1782341442000,-542.12,0.00014999,2]
[426392789,1782341442000,-542.12,0.00014999,2]
[426392788,1782341442000,-542.12,0.00014999,2]
[426392790,1782341442000,-542.12,0.00014999,2]
[426392792,1782341442000,-542.12,0.00014999,2]
[426392766,1782341442000,-500.0,0.00014999,2]
[426392778,1782341442000,-500.0,0.00014999,2]
[426392767,1782341442000,-317.76731396,0.00014999,2]
[426392746,1782341442000,-150.0,0.00014952,2]
[426392763,1782341442000,-176.84461302,0.0001499,2]
[426392795,1782341442000,-542.12,0.00014999,2]
[426392733,1782341442000,-5393.4018805,0.000149,2]
[426392732,1782341442000,-1200.0,0.000149,5]
[426392735,1782341442000,-1050.45040417,0.00014908,2]
[426392734,1782341442000,-150.0,0.00014901,2]
[426392737,1782341442000,-150.0,0.00014913,2]
[426392738,1782341442000,-150.0,0.00014918,2]
[426392736,1782341442000,-150.0,0.00014912,2]
[426392739,1782341442000,-150.0,0.00014918,2]
[426392741,1782341442000,-150.0,0.00014935,2]
[426392740,1782341442000,-150.0,0.00014931,2]
[426392743,1782341442000,-150.0,0.00014949,2]
[426392761,1782341442000,-176.84461302,0.0001499,2]
[426392742,1782341442000,-150.0,0.00014935,2]
[426392745,1782341442000,-6111.0,0.00014952,2]
[426392747,1782341442000,-150.0,0.00014968,2]
[426392749,1782341442000,-150.0,0.00014986,2]
[426392748,1782341442000,-150.0,0.00014969,2]
[426392753,1782341442000,-150.0,0.00014986,2]
[426392754,1782341442000,-150.00000001,0.00014986,2]
[426392752,1782341442000,-150.0,0.00014986,2]
[426392755,1782341442000,-150.0,0.00014986,2]
[426392750,1782341442000,-150.00000001,0.00014986,2]
[426392751,1782341442000,-150.0,0.00014986,2]
[426392757,1782341442000,-209.17418234,0.00014986,2]
[426392759,1782341442000,-297.89529666,0.00014986,2]
[426392744,1782341442000,-150.0,0.0001495,2]
[426392796,1782341442000,-542.12,0.00014999,2]
[426392802,1782341442000,-500.0,0.00014999,2]
[426392794,1782341442000,-542.12,0.00014999,2]
[426392828,1782341442000,-500.0,0.00014999,2]
[426392831,1782341442000,-500.0,0.00014999,2]
[426392830,1782341442000,-500.0,0.00014999,2]
[426392829,1782341442000,-500.0,0.00014999,2]
[426392833,1782341442000,-500.0,0.00014999,2]
[426392836,1782341442000,-293.67,0.00014999,2]
[426392835,1782341442000,-500.0,0.00014999,2]
[426392834,1782341442000,-500.0,0.00014999,2]
[426392832,1782341442000,-500.0,0.00014999,2]
[426392838,1782341442000,-479.84,0.00014999,2]
[426392837,1782341442000,-500.0,0.00014999,2]
[426392840,1782341442000,-500.0,0.00014999,2]
[426392827,1782341442000,-500.0,0.00014999,2]
[426392839,1782341442000,-500.0,0.00014999,2]
[426392842,1782341442000,-500.0,0.00014999,2]
[426392843,1782341442000,-500.0,0.00014999,2]
[426392845,1782341442000,-500.0,0.00014999,2]
[426392844,1782341442000,-500.0,0.00014999,2]
[426392846,1782341442000,-500.0,0.00014999,2]
[426392793,1782341442000,-542.12,0.00014999,2]
[426392848,1782341442000,-500.0,0.00014999,2]
[426392850,1782341442000,-500.0,0.00014999,2]
[426392851,1782341442000,-500.0,0.00014999,2]
[426392852,1782341442000,-500.0,0.00014999,2]
[426392849,1782341442000,-500.0,0.00014999,2]
[426392853,1782341442000,-616.46,0.00014999,2]
[426392841,1782341442000,-500.0,0.00014999,2]
[426392826,1782341442000,-500.0,0.00014999,2]
[426392847,1782341442000,-500.0,0.00014999,2]
[426392824,1782341442000,-500.0,0.00014999,2]
[426392825,1782341442000,-500.0,0.00014999,2]
[426392797,1782341442000,-542.12,0.00014999,2]
[426392799,1782341442000,-542.19576843,0.00014999,2]
[426392798,1782341442000,-542.12,0.00014999,2]
[426392800,1782341442000,-500.0,0.00014999,2]
[426392803,1782341442000,-500.0,0.00014999,2]
[426392804,1782341442000,-500.0,0.00014999,2]
[426392806,1782341442000,-500.0,0.00014999,2]
[426392807,1782341442000,-500.0,0.00014999,2]
[426392805,1782341442000,-500.0,0.00014999,2]
[426392809,1782341442000,-500.0,0.00014999,2]
[426392808,1782341442000,-500.0,0.00014999,2]
[426392810,1782341442000,-500.0,0.00014999,2]
[426392801,1782341442000,-500.0,0.00014999,2]
[426392813,1782341442000,-448.76706005,0.00014999,2]
[426392811,1782341442000,-500.0,0.00014999,2]
[426392823,1782341442000,-500.0,0.00014999,2]
[426392822,1782341442000,-500.0,0.00014999,2]
[426392821,1782341442000,-642.72,0.00014999,2]
[426392820,1782341442000,-500.0,0.00014999,2]
[426392819,1782341442000,-500.0,0.00014999,2]
[426392814,1782341442000,-500.0,0.00014999,2]
[426392817,1782341442000,-500.0,0.00014999,2]
[426392815,1782341442000,-500.0,0.00014999,2]
[426392816,1782341442000,-500.0,0.00014999,2]
[426392812,1782341442000,-500.0,0.00014999,2]
[426392818,1782341442000,-500.0,0.00014999,2]
[426392878,1782341443000,-520.11,0.00014999,2]
[426392879,1782341443000,-520.11,0.00014999,2]
[426392881,1782341443000,-520.11,0.00014999,2]
[426392880,1782341443000,-520.11,0.00014999,2]
[426392883,1782341443000,-520.11,0.00014999,2]
[426392882,1782341443000,-520.11,0.00014999,2]
[426392884,1782341443000,-520.11,0.00014999,2]
[426392886,1782341443000,-520.11,0.00014999,2]
[426392895,1782341443000,-500.0,0.00014999,2]
[426392888,1782341443000,-520.29,0.00014999,2]
[426392890,1782341443000,-500.0,0.00014999,2]
[426392887,1782341443000,-520.11,0.00014999,2]
[426392892,1782341443000,-156.09,0.00014999,2]
[426392891,1782341443000,-500.0,0.00014999,2]
[426392889,1782341443000,-500.0,0.00014999,2]
[426392894,1782341443000,-500.0,0.00014999,2]
[426392893,1782341443000,-500.0,0.00014999,2]
[426392877,1782341443000,-520.11,0.00014999,2]
[426392885,1782341443000,-520.11,0.00014999,2]
[426392876,1782341443000,-520.11,0.00014999,2]
[426392863,1782341443000,-500.0,0.00014999,2]
[426392873,1782341443000,-520.11,0.00014999,2]
[426392854,1782341443000,-500.0,0.00014999,2]
[426392855,1782341443000,-500.0,0.00014999,2]
[426392856,1782341443000,-500.0,0.00014999,2]
[426392858,1782341443000,-500.0,0.00014999,2]
[426392857,1782341443000,-500.0,0.00014999,2]